[Event "Titled Tuesday Blitz December 20 Early 2022"]
[White "katchesskat"]
[Black "Suduvasachmatai"]
[WhiteElo "2391"]
[BlackElo "2110"]
[Result "0-1"]
[Round "07"]
[TimeControl "180+2"]
[Date "2022.12.20"]
[WhiteClock "0:01:10"]
[BlackClock "0:01:31"]

1. c4 {[%clk 0:03:00]}  e6 {[%clk 0:02:55]} 2. Nf3 {[%clk 0:02:47]}  d5 {[%clk 0:02:55]} 3. e3 {[%clk 0:02:43]}  c5 {[%clk 0:02:55]} 4. a3 {[%clk 0:02:40]}  Nc6 {[%clk 0:02:52]} 5. Qc2 {[%clk 0:02:39]}  Nf6 {[%clk 0:02:50]} 6. d3 {[%clk 0:02:38]}  d4 {[%clk 0:02:45]} 7. e4 {[%clk 0:02:38]}  e5 {[%clk 0:02:45]} 8. Bg5 {[%clk 0:02:38]}  Be7 {[%clk 0:02:40]} 9. Bxf6 {[%clk 0:02:38]}  Bxf6 {[%clk 0:02:40]} 10. Be2 {[%clk 0:02:39]}  O-O {[%clk 0:02:40]} 11. Nbd2 {[%clk 0:02:39]}  a6 {[%clk 0:02:37]} 12. Nf1 {[%clk 0:02:40]}  Bg4 {[%clk 0:02:35]} 13. Ng1 {[%clk 0:02:39]}  Bxe2 {[%clk 0:02:34]} 14. Nxe2 {[%clk 0:02:39]}  Qe7 {[%clk 0:02:34]} 15. Nfg3 {[%clk 0:02:39]}  Qc7 {[%clk 0:02:29]} 16. O-O {[%clk 0:02:38]}  Ne7 {[%clk 0:02:27]} 17. Nf5 {[%clk 0:02:36]}  Nxf5 {[%clk 0:02:27]} 18. exf5 {[%clk 0:02:36]}  Rfe8 {[%clk 0:02:26]} 19. Ng3 {[%clk 0:02:37]}  b5 {[%clk 0:02:23]} 20. b3 {[%clk 0:02:36]}  bxc4 {[%clk 0:02:23]} 21. Qxc4 {[%clk 0:02:32]}  Rac8 {[%clk 0:02:20]} 22. Rac1 {[%clk 0:02:33]}  Qd6 {[%clk 0:02:16]} 23. Ne4 {[%clk 0:02:31]}  Qb6 {[%clk 0:02:16]} 24. Nxc5 {[%clk 0:02:29]}  Be7 {[%clk 0:02:08]} 25. b4 {[%clk 0:02:23]}  a5 {[%clk 0:02:08]} 26. Rfe1 {[%clk 0:02:18]}  axb4 {[%clk 0:02:03]} 27. axb4 {[%clk 0:02:17]}  Bxc5 {[%clk 0:01:57]} 28. bxc5 {[%clk 0:02:15]}  Qf6 {[%clk 0:01:57]} 29. Re4 {[%clk 0:01:36]}  Qxf5 {[%clk 0:01:54]} 30. Rce1 {[%clk 0:01:34]}  Re6 {[%clk 0:01:43]} 31. Qd5 {[%clk 0:01:17]}  Rce8 {[%clk 0:01:35]} 32. Rxd4 {[%clk 0:01:16]}  exd4 {[%clk 0:01:31]} 33. Rxe6 {[%clk 0:01:10]}  Qxe6 {[%clk 0:01:31]} 0-1


[Site "https://www.chess.com"]

[Event "Titled Tuesday Blitz December 20 Early 2022"]
[White "lamomiajunior"]
[Black "Tsigelnitskiy, Ilusha"]
[BlackFideId "4132971"]
[WhiteElo "2526"]
[BlackElo "2342"]
[Result "1-0"]
[Round "07"]
[TimeControl "180+2"]
[Date "2022.12.20"]
[WhiteClock "0:01:17"]
[BlackClock "0:00:02"]

1. d4 {[%clk 0:03:00]}  e6 {[%clk 0:02:59]} 2. Nc3 {[%clk 0:03:00]}  Nf6 {[%clk 0:02:59]} 3. Bf4 {[%clk 0:03:00]}  c5 {[%clk 0:02:59]} 4. e3 {[%clk 0:02:59]}  d5 {[%clk 0:02:55]} 5. Nb5 {[%clk 0:02:58]}  Na6 {[%clk 0:02:55]} 6. c3 {[%clk 0:02:59]}  Be7 {[%clk 0:02:53]} 7. Nf3 {[%clk 0:02:58]}  O-O {[%clk 0:02:53]} 8. Bd3 {[%clk 0:02:56]}  Bd7 {[%clk 0:02:51]} 9. a4 {[%clk 0:02:56]}  h6 {[%clk 0:02:43]} 10. Ne5 {[%clk 0:02:55]}  Nb8 {[%clk 0:02:30]} 11. Bb1 {[%clk 0:02:40]}  a6 {[%clk 0:02:26]} 12. Na3 {[%clk 0:02:40]}  Nc6 {[%clk 0:02:18]} 13. Qd3 {[%clk 0:02:37]}  Bd6 {[%clk 0:01:39]} 14. Ng4 {[%clk 0:02:19]}  Ne4 {[%clk 0:00:34]} 15. Bxd6 {[%clk 0:02:18]}  Re8 {[%clk 0:00:28]} 16. f3 {[%clk 0:02:15]}  Nxd6 {[%clk 0:00:25]} 17. dxc5 {[%clk 0:02:08]}  Nf5 {[%clk 0:00:17]} 18. O-O {[%clk 0:02:04]}  h5 {[%clk 0:00:14]} 19. Nf2 {[%clk 0:02:01]}  Ne5 {[%clk 0:00:11]} 20. Qd2 {[%clk 0:02:01]}  Bxa4 {[%clk 0:00:07]} 21. Bxf5 {[%clk 0:01:55]}  exf5 {[%clk 0:00:08]} 22. b4 {[%clk 0:01:54]}  Bc6 {[%clk 0:00:04]} 23. Rfd1 {[%clk 0:01:54]}  Qe7 {[%clk 0:00:03]} 24. Re1 {[%clk 0:01:52]}  Nc4 {[%clk 0:00:04]} 25. Nxc4 {[%clk 0:01:53]}  dxc4 {[%clk 0:00:04]} 26. Qc2 {[%clk 0:01:52]}  Qe6 {[%clk 0:00:04]} 27. e4 {[%clk 0:01:51]}  fxe4 {[%clk 0:00:04]} 28. Nxe4 {[%clk 0:01:52]}  Rad8 {[%clk 0:00:03]} 29. Kf2 {[%clk 0:01:45]}  Qd5 {[%clk 0:00:03]} 30. Rad1 {[%clk 0:01:43]}  Qf5 {[%clk 0:00:03]} 31. Rd4 {[%clk 0:01:18]}  Rxd4 {[%clk 0:00:03]} 32. cxd4 {[%clk 0:01:17]}  Bxe4 {[%clk 0:00:02]} 33. Rxe4 {[%clk 0:01:17]} 1-0


[Site "https://www.chess.com"]

[Event "Titled Tuesday Blitz December 20 Early 2022"]
[White "larsmandreassen"]
[Black "Nyambe, Maketo"]
[BlackFideId "8700915"]
[WhiteElo "2215"]
[BlackElo "2091"]
[Result "0-1"]
[Round "07"]
[TimeControl "180+2"]
[Date "2022.12.20"]
[WhiteClock "0:01:16"]
[BlackClock "0:00:02"]

1. d4 {[%clk 0:02:40]}  d5 {[%clk 0:03:00]} 2. Nf3 {[%clk 0:02:41]}  Nf6 {[%clk 0:03:00]} 3. c4 {[%clk 0:02:42]}  e6 {[%clk 0:03:00]} 4. Nc3 {[%clk 0:02:42]}  Be7 {[%clk 0:03:00]} 5. Bg5 {[%clk 0:02:42]}  h6 {[%clk 0:03:00]} 6. Bh4 {[%clk 0:02:41]}  O-O {[%clk 0:03:00]} 7. e3 {[%clk 0:02:42]}  b6 {[%clk 0:03:00]} 8. cxd5 {[%clk 0:02:41]}  Nxd5 {[%clk 0:03:00]} 9. Bxe7 {[%clk 0:02:40]}  Nxe7 {[%clk 0:02:59]} 10. Be2 {[%clk 0:02:39]}  Bb7 {[%clk 0:02:59]} 11. O-O {[%clk 0:02:40]}  Nd7 {[%clk 0:02:59]} 12. Rc1 {[%clk 0:02:40]}  c5 {[%clk 0:02:59]} 13. Qb3 {[%clk 0:02:32]}  cxd4 {[%clk 0:02:56]} 14. exd4 {[%clk 0:02:30]}  Nf6 {[%clk 0:02:51]} 15. Rfd1 {[%clk 0:02:29]}  Nfd5 {[%clk 0:02:49]} 16. Ne5 {[%clk 0:02:20]}  Nf5 {[%clk 0:02:40]} 17. Bf3 {[%clk 0:02:08]}  Nxc3 {[%clk 0:02:31]} 18. bxc3 {[%clk 0:02:08]}  Bxf3 {[%clk 0:02:29]} 19. Nxf3 {[%clk 0:02:08]}  Qf6 {[%clk 0:02:14]} 20. Ne5 {[%clk 0:02:06]}  Rfd8 {[%clk 0:02:14]} 21. Rd3 {[%clk 0:01:57]}  Rac8 {[%clk 0:02:13]} 22. Rcd1 {[%clk 0:01:53]}  Qg5 {[%clk 0:01:56]} 23. h3 {[%clk 0:01:48]}  Qf4 {[%clk 0:01:46]} 24. Rf3 {[%clk 0:01:44]}  Qe4 {[%clk 0:01:46]} 25. g4 {[%clk 0:01:19]}  Nh4 {[%clk 0:01:40]} 26. Rxf7 {[%clk 0:01:16]}  Qg2# {[%clk 0:00:02]} 0-1


[Site "https://www.chess.com"]

[Event "Titled Tuesday Blitz December 20 Early 2022"]
[White "manitodeplomo"]
[Black "Beca, Rodrigo Martins"]
[BlackFideId "1954490"]
[WhiteElo "2639"]
[BlackElo "2976"]
[Result "0-1"]
[Round "07"]
[TimeControl "180+2"]
[Date "2022.12.20"]
[WhiteClock "0:00:03"]
[BlackClock "0:00:32"]

1. d4 {[%clk 0:02:54]}  Nf6 {[%clk 0:02:59]} 2. c4 {[%clk 0:02:54]}  c5 {[%clk 0:02:59]} 3. d5 {[%clk 0:02:54]}  g6 {[%clk 0:02:59]} 4. Nc3 {[%clk 0:02:53]}  Bg7 {[%clk 0:02:59]} 5. e4 {[%clk 0:02:53]}  d6 {[%clk 0:03:00]} 6. h3 {[%clk 0:02:53]}  O-O {[%clk 0:03:00]} 7. Nf3 {[%clk 0:02:54]}  e6 {[%clk 0:03:00]} 8. Bd3 {[%clk 0:02:54]}  exd5 {[%clk 0:03:01]} 9. cxd5 {[%clk 0:02:55]}  Re8 {[%clk 0:03:00]} 10. O-O {[%clk 0:02:55]}  Nbd7 {[%clk 0:03:00]} 11. Re1 {[%clk 0:02:54]}  Ne5 {[%clk 0:03:00]} 12. Nxe5 {[%clk 0:02:52]}  Rxe5 {[%clk 0:03:00]} 13. f4 {[%clk 0:02:52]}  Re8 {[%clk 0:02:59]} 14. Qf3 {[%clk 0:02:53]}  a6 {[%clk 0:02:56]} 15. a4 {[%clk 0:02:52]}  Nd7 {[%clk 0:02:53]} 16. Be3 {[%clk 0:02:50]}  Rb8 {[%clk 0:02:51]} 17. Bf2 {[%clk 0:02:44]}  Qc7 {[%clk 0:02:49]} 18. Rad1 {[%clk 0:02:21]}  c4 {[%clk 0:02:48]} 19. Bb1 {[%clk 0:02:20]}  b5 {[%clk 0:02:49]} 20. axb5 {[%clk 0:02:21]}  axb5 {[%clk 0:02:49]} 21. e5 {[%clk 0:02:21]}  dxe5 {[%clk 0:02:39]} 22. d6 {[%clk 0:02:22]}  Qd8 {[%clk 0:02:36]} 23. f5 {[%clk 0:02:13]}  b4 {[%clk 0:02:32]} 24. Nd5 {[%clk 0:02:11]}  Bb7 {[%clk 0:02:31]} 25. Be4 {[%clk 0:01:57]}  Bxd5 {[%clk 0:02:16]} 26. Bxd5 {[%clk 0:01:56]}  e4 {[%clk 0:02:16]} 27. Rxe4 {[%clk 0:01:52]}  Ne5 {[%clk 0:02:11]} 28. Rxe5 {[%clk 0:01:45]}  Rxe5 {[%clk 0:02:08]} 29. fxg6 {[%clk 0:01:45]}  hxg6 {[%clk 0:02:02]} 30. Qxf7+ {[%clk 0:01:23]}  Kh7 {[%clk 0:02:01]} 31. Bxc4 {[%clk 0:01:22]}  Rf5 {[%clk 0:01:57]} 32. Qc7 {[%clk 0:00:56]}  Rxf2 {[%clk 0:01:37]} 33. Kxf2 {[%clk 0:00:40]}  Qh4+ {[%clk 0:01:32]} 34. Kg1 {[%clk 0:00:40]}  Rf8 {[%clk 0:01:31]} 35. d7 {[%clk 0:00:29]}  Rd8 {[%clk 0:01:24]} 36. b3 {[%clk 0:00:22]}  Qg5 {[%clk 0:01:14]} 37. Qd6 {[%clk 0:00:17]}  Be5 {[%clk 0:01:11]} 38. Qe6 {[%clk 0:00:17]}  Qe3+ {[%clk 0:01:08]} 39. Kh1 {[%clk 0:00:16]}  Qg3 {[%clk 0:01:08]} 40. Kg1 {[%clk 0:00:14]}  Kh6 {[%clk 0:01:05]} 41. Qg4 {[%clk 0:00:13]}  Qh2+ {[%clk 0:01:04]} 42. Kf1 {[%clk 0:00:12]}  Rf8+ {[%clk 0:00:54]} 43. Ke2 {[%clk 0:00:12]}  Bf6 {[%clk 0:00:48]} 44. Rf1 {[%clk 0:00:10]}  Qe5+ {[%clk 0:00:46]} 45. Kd1 {[%clk 0:00:07]}  Qa1+ {[%clk 0:00:41]} 46. Ke2 {[%clk 0:00:07]}  Qb2+ {[%clk 0:00:41]} 47. Kd1 {[%clk 0:00:07]}  Ra8 {[%clk 0:00:32]} 48. Qf4+ {[%clk 0:00:05]}  Bg5 {[%clk 0:00:32]} 49. Qf8+ {[%clk 0:00:03]}  Rxf8 {[%clk 0:00:31]} 50. Rxf8 {[%clk 0:00:03]}  Qd2# {[%clk 0:00:32]} 0-1


[Site "https://www.chess.com"]

[Event "Titled Tuesday Blitz December 20 Early 2022"]
[White "politeplayer"]
[Black "Ezat, Mohamed"]
[BlackFideId "10600906"]
[WhiteElo "2244"]
[BlackElo "2402"]
[Result "0-1"]
[Round "07"]
[TimeControl "180+2"]
[Date "2022.12.20"]
[WhiteClock "0:00:03"]
[BlackClock "0:00:32"]

1. e4 {[%clk 0:03:00]}  c6 {[%clk 0:02:25]} 2. d4 {[%clk 0:02:49]}  d5 {[%clk 0:02:23]} 3. exd5 {[%clk 0:02:49]}  cxd5 {[%clk 0:02:22]} 4. c4 {[%clk 0:02:50]}  Nf6 {[%clk 0:02:19]} 5. Nc3 {[%clk 0:02:50]}  Nc6 {[%clk 0:02:17]} 6. Nf3 {[%clk 0:02:49]}  Bg4 {[%clk 0:02:16]} 7. cxd5 {[%clk 0:02:48]}  Nxd5 {[%clk 0:02:15]} 8. Qb3 {[%clk 0:02:48]}  Bxf3 {[%clk 0:02:14]} 9. gxf3 {[%clk 0:02:48]}  Nb6 {[%clk 0:02:14]} 10. Be3 {[%clk 0:02:44]}  e6 {[%clk 0:02:12]} 11. O-O-O {[%clk 0:02:42]}  Be7 {[%clk 0:02:10]} 12. d5 {[%clk 0:02:35]}  exd5 {[%clk 0:02:09]} 13. Nxd5 {[%clk 0:02:35]}  Nxd5 {[%clk 0:02:08]} 14. Rxd5 {[%clk 0:02:35]}  Qc7 {[%clk 0:02:09]} 15. Kb1 {[%clk 0:02:28]}  O-O {[%clk 0:02:03]} 16. Bd3 {[%clk 0:02:19]}  Rad8 {[%clk 0:01:38]} 17. Rc1 {[%clk 0:02:10]}  Rxd5 {[%clk 0:01:26]} 18. Qxd5 {[%clk 0:02:10]}  Qxh2 {[%clk 0:01:25]} 19. f4 {[%clk 0:02:02]}  Nb4 {[%clk 0:01:19]} 20. Rh1 {[%clk 0:01:05]}  Nxd5 {[%clk 0:01:09]} 21. Rxh2 {[%clk 0:01:05]}  g6 {[%clk 0:01:09]} 22. f5 {[%clk 0:00:59]}  Rd8 {[%clk 0:00:41]} 23. Bxa7 {[%clk 0:00:39]}  Nb4 {[%clk 0:00:36]} 24. Be2 {[%clk 0:00:13]}  Rd2 {[%clk 0:00:36]} 25. f4 {[%clk 0:00:08]}  Bf6 {[%clk 0:00:35]} 26. fxg6 {[%clk 0:00:06]}  hxg6 {[%clk 0:00:34]} 27. Bc4 {[%clk 0:00:03]}  Rxh2 {[%clk 0:00:32]} 0-1


[Site "https://www.chess.com"]

[Event "Titled Tuesday Blitz December 20 Early 2022"]
[White "sergeikim"]
[Black "WhiteKnight2612"]
[WhiteElo "2606"]
[BlackElo "2753"]
[Result "1-0"]
[Round "07"]
[TimeControl "180+2"]
[Date "2022.12.20"]
[WhiteClock "0:01:24"]
[BlackClock "0:01:13"]

1. d4 {[%clk 0:03:00]}  d5 {[%clk 0:02:49]} 2. c4 {[%clk 0:03:01]}  e6 {[%clk 0:02:49]} 3. Nc3 {[%clk 0:03:00]}  Nf6 {[%clk 0:02:48]} 4. Nf3 {[%clk 0:03:00]}  dxc4 {[%clk 0:02:48]} 5. e3 {[%clk 0:03:00]}  c5 {[%clk 0:02:48]} 6. Bxc4 {[%clk 0:02:59]}  a6 {[%clk 0:02:49]} 7. a3 {[%clk 0:02:56]}  b5 {[%clk 0:02:48]} 8. Ba2 {[%clk 0:02:57]}  Bb7 {[%clk 0:02:48]} 9. O-O {[%clk 0:02:57]}  Be7 {[%clk 0:02:45]} 10. Qe2 {[%clk 0:02:57]}  O-O {[%clk 0:02:45]} 11. Rd1 {[%clk 0:02:57]}  Qb6 {[%clk 0:02:44]} 12. e4 {[%clk 0:02:54]}  cxd4 {[%clk 0:02:43]} 13. Nxd4 {[%clk 0:02:54]}  Bc5 {[%clk 0:02:43]} 14. Be3 {[%clk 0:02:53]}  Rd8 {[%clk 0:02:42]} 15. e5 {[%clk 0:01:58]}  Nfd7 {[%clk 0:01:49]} 16. b4 {[%clk 0:01:44]}  Bxd4 {[%clk 0:01:37]} 17. Bxd4 {[%clk 0:01:34]}  Qc6 {[%clk 0:01:37]} 18. Qg4 {[%clk 0:01:35]}  Nf8 {[%clk 0:01:28]} 19. Rac1 {[%clk 0:01:32]}  Qe8 {[%clk 0:01:24]} 20. Ne4 {[%clk 0:01:28]}  h5 {[%clk 0:01:13]} 21. Nf6+ {[%clk 0:01:24]} 1-0


[Site "https://www.chess.com"]

[Event "Titled Tuesday Blitz December 20 Early 2022"]
[White "viditchess"]
[Black "Jalapeno_Tractor_Schuppen"]
[WhiteElo "2986"]
[BlackElo "2631"]
[Result "1-0"]
[Round "07"]
[TimeControl "180+2"]
[Date "2022.12.20"]
[WhiteClock "0:01:36"]
[BlackClock "0:00:18"]

1. Nf3 {[%clk 0:03:00]}  d5 {[%clk 0:02:55]} 2. b3 {[%clk 0:03:00]}  Nc6 {[%clk 0:02:54]} 3. Bb2 {[%clk 0:03:00]}  a6 {[%clk 0:02:53]} 4. e3 {[%clk 0:02:58]}  Bf5 {[%clk 0:02:53]} 5. d4 {[%clk 0:02:55]}  Qd6 {[%clk 0:02:52]} 6. c4 {[%clk 0:02:52]}  Nb4 {[%clk 0:02:43]} 7. Na3 {[%clk 0:02:52]}  e6 {[%clk 0:02:31]} 8. Be2 {[%clk 0:02:52]}  Nf6 {[%clk 0:02:28]} 9. O-O {[%clk 0:02:52]}  Be7 {[%clk 0:02:28]} 10. Ne5 {[%clk 0:02:50]}  O-O {[%clk 0:02:18]} 11. c5 {[%clk 0:02:50]}  Qd8 {[%clk 0:02:17]} 12. Bc3 {[%clk 0:02:50]}  a5 {[%clk 0:02:14]} 13. Qe1 {[%clk 0:02:50]}  Ne4 {[%clk 0:02:06]} 14. f3 {[%clk 0:02:47]}  Nxc3 {[%clk 0:02:04]} 15. Qxc3 {[%clk 0:02:48]}  f6 {[%clk 0:02:01]} 16. Ng4 {[%clk 0:02:34]}  b6 {[%clk 0:01:56]} 17. cxb6 {[%clk 0:02:33]}  cxb6 {[%clk 0:01:55]} 18. Qd2 {[%clk 0:02:33]}  Bd6 {[%clk 0:01:47]} 19. Nf2 {[%clk 0:02:32]}  Qe7 {[%clk 0:01:30]} 20. Nb5 {[%clk 0:02:32]}  Rac8 {[%clk 0:01:30]} 21. Rac1 {[%clk 0:02:23]}  Bg6 {[%clk 0:01:18]} 22. e4 {[%clk 0:02:20]}  Bb8 {[%clk 0:01:11]} 23. a3 {[%clk 0:02:16]}  Nc6 {[%clk 0:01:10]} 24. Rfe1 {[%clk 0:02:12]}  Qd7 {[%clk 0:01:03]} 25. exd5 {[%clk 0:02:09]}  exd5 {[%clk 0:01:03]} 26. Bf1 {[%clk 0:02:03]}  Na7 {[%clk 0:01:01]} 27. Nc3 {[%clk 0:02:02]}  Qd6 {[%clk 0:00:51]} 28. g3 {[%clk 0:02:02]}  Qxa3 {[%clk 0:00:52]} 29. Nxd5 {[%clk 0:02:02]}  Qd6 {[%clk 0:00:50]} 30. Ne7+ {[%clk 0:02:01]}  Kh8 {[%clk 0:00:46]} 31. Nxc8 {[%clk 0:02:02]}  Nxc8 {[%clk 0:00:47]} 32. Ne4 {[%clk 0:02:01]}  Qd8 {[%clk 0:00:46]} 33. Bh3 {[%clk 0:02:01]}  Ne7 {[%clk 0:00:45]} 34. Nc3 {[%clk 0:01:57]}  Bd6 {[%clk 0:00:44]} 35. Be6 {[%clk 0:01:49]}  Bb4 {[%clk 0:00:44]} 36. d5 {[%clk 0:01:47]}  Qd6 {[%clk 0:00:40]} 37. Kg2 {[%clk 0:01:47]}  Rd8 {[%clk 0:00:32]} 38. Red1 {[%clk 0:01:46]}  Nc6 {[%clk 0:00:28]} 39. Nb5 {[%clk 0:01:35]}  Bxd2 {[%clk 0:00:26]} 40. Nxd6 {[%clk 0:01:35]}  Bxc1 {[%clk 0:00:18]} 41. dxc6 {[%clk 0:01:36]} 1-0


[Site "https://www.chess.com"]

[Event "Titled Tuesday Blitz December 20 Early 2022"]
[White "vladoboch"]
[Black "Canche Cab, Marco Alexei"]
[BlackFideId "5116139"]
[WhiteElo "2445"]
[BlackElo "2004"]
[Result "0-1"]
[Round "07"]
[TimeControl "180+2"]
[Date "2022.12.20"]
[WhiteClock "0:00:11"]
[BlackClock "0:00:07"]

1. e4 {[%clk 0:02:59]}  Nf6 {[%clk 0:02:59]} 2. e5 {[%clk 0:03:00]}  Nd5 {[%clk 0:02:59]} 3. d4 {[%clk 0:02:59]}  d6 {[%clk 0:02:59]} 4. c4 {[%clk 0:02:59]}  Nb6 {[%clk 0:02:58]} 5. f4 {[%clk 0:03:00]}  g6 {[%clk 0:02:42]} 6. Be3 {[%clk 0:02:58]}  Bg7 {[%clk 0:02:36]} 7. Nc3 {[%clk 0:02:57]}  Be6 {[%clk 0:02:34]} 8. d5 {[%clk 0:02:50]}  Bf5 {[%clk 0:02:25]} 9. Nf3 {[%clk 0:02:41]}  N8d7 {[%clk 0:02:19]} 10. Bd4 {[%clk 0:01:59]}  O-O {[%clk 0:02:07]} 11. h3 {[%clk 0:01:49]}  dxe5 {[%clk 0:01:36]} 12. fxe5 {[%clk 0:01:43]}  c5 {[%clk 0:01:36]} 13. dxc6 {[%clk 0:01:26]}  bxc6 {[%clk 0:01:36]} 14. c5 {[%clk 0:01:20]}  Nd5 {[%clk 0:01:33]} 15. Bc4 {[%clk 0:01:12]}  Nxc3 {[%clk 0:01:20]} 16. bxc3 {[%clk 0:01:12]}  e6 {[%clk 0:01:03]} 17. O-O {[%clk 0:01:12]}  Be4 {[%clk 0:00:58]} 18. Qe2 {[%clk 0:01:09]}  Bd5 {[%clk 0:00:53]} 19. Nd2 {[%clk 0:01:09]}  Qe7 {[%clk 0:00:50]} 20. Bd3 {[%clk 0:01:02]}  Nxc5 {[%clk 0:00:28]} 21. c4 {[%clk 0:01:01]}  Nxd3 {[%clk 0:00:17]} 22. cxd5 {[%clk 0:00:52]}  Nxe5 {[%clk 0:00:15]} 23. Bxe5 {[%clk 0:00:42]}  exd5 {[%clk 0:00:15]} 24. Rae1 {[%clk 0:00:42]}  Rfe8 {[%clk 0:00:15]} 25. Nf3 {[%clk 0:00:38]}  f6 {[%clk 0:00:08]} 26. Qc2 {[%clk 0:00:32]}  fxe5 {[%clk 0:00:08]} 27. Qxc6 {[%clk 0:00:33]}  Rad8 {[%clk 0:00:09]} 28. Nd4 {[%clk 0:00:24]}  Qd7 {[%clk 0:00:05]} 29. Qxd7 {[%clk 0:00:11]}  Rxd7 {[%clk 0:00:06]} 30. Rf3 {[%clk 0:00:12]}  e4 {[%clk 0:00:05]} 31. Ra3 {[%clk 0:00:12]}  Bxd4+ {[%clk 0:00:05]} 32. Kh1 {[%clk 0:00:12]}  Bb6 {[%clk 0:00:06]} 33. Rb3 {[%clk 0:00:12]}  d4 {[%clk 0:00:06]} 34. a4 {[%clk 0:00:11]}  d3 {[%clk 0:00:06]} 35. Rd1 {[%clk 0:00:11]}  e3 {[%clk 0:00:06]} 36. Rdxd3 {[%clk 0:00:11]}  Rxd3 {[%clk 0:00:06]} 37. Rxd3 {[%clk 0:00:11]}  e2 {[%clk 0:00:07]} 0-1


[Site "https://www.chess.com"]

[Event "Titled Tuesday Blitz December 20 Early 2022"]
[White "vovachesss"]
[Black "Ivan11Martic"]
[WhiteElo "2756"]
[BlackElo "2528"]
[Result "1-0"]
[Round "07"]
[TimeControl "180+2"]
[Date "2022.12.20"]
[WhiteClock "0:00:10"]
[BlackClock "0:00:29"]

1. e4 {[%clk 0:03:00]}  e5 {[%clk 0:02:59]} 2. Nf3 {[%clk 0:03:00]}  Nc6 {[%clk 0:03:00]} 3. Nc3 {[%clk 0:03:01]}  g6 {[%clk 0:02:59]} 4. d4 {[%clk 0:02:58]}  exd4 {[%clk 0:02:59]} 5. Nd5 {[%clk 0:02:56]}  Bg7 {[%clk 0:02:56]} 6. Bg5 {[%clk 0:02:54]}  Nce7 {[%clk 0:02:56]} 7. Nxd4 {[%clk 0:02:42]}  c6 {[%clk 0:02:56]} 8. Nxe7 {[%clk 0:01:56]}  Nxe7 {[%clk 0:02:55]} 9. c3 {[%clk 0:01:56]}  O-O {[%clk 0:02:46]} 10. Be2 {[%clk 0:01:43]}  h6 {[%clk 0:02:42]} 11. Bh4 {[%clk 0:01:40]}  g5 {[%clk 0:02:37]} 12. Bg3 {[%clk 0:01:39]}  d5 {[%clk 0:02:37]} 13. exd5 {[%clk 0:01:39]}  Nxd5 {[%clk 0:02:36]} 14. O-O {[%clk 0:01:39]}  f5 {[%clk 0:02:32]} 15. h3 {[%clk 0:01:22]}  f4 {[%clk 0:02:30]} 16. Bh2 {[%clk 0:01:22]}  Kh8 {[%clk 0:02:29]} 17. Bf3 {[%clk 0:01:20]}  Bd7 {[%clk 0:02:26]} 18. Re1 {[%clk 0:01:20]}  Qf6 {[%clk 0:02:24]} 19. Qb3 {[%clk 0:01:18]}  Qf7 {[%clk 0:02:00]} 20. Rad1 {[%clk 0:01:08]}  Rab8 {[%clk 0:01:56]} 21. Bg4 {[%clk 0:01:05]}  Bxg4 {[%clk 0:01:51]} 22. hxg4 {[%clk 0:01:06]}  Rfe8 {[%clk 0:01:50]} 23. Nf5 {[%clk 0:01:02]}  Bf8 {[%clk 0:01:41]} 24. g3 {[%clk 0:00:40]}  Rxe1+ {[%clk 0:01:37]} 25. Rxe1 {[%clk 0:00:40]}  Re8 {[%clk 0:01:38]} 26. Qd1 {[%clk 0:00:28]}  Bc5 {[%clk 0:01:32]} 27. gxf4 {[%clk 0:00:25]}  gxf4 {[%clk 0:01:17]} 28. Rxe8+ {[%clk 0:00:23]}  Qxe8 {[%clk 0:01:17]} 29. c4 {[%clk 0:00:23]}  Nb4 {[%clk 0:01:05]} 30. Bxf4 {[%clk 0:00:23]}  Qg8 {[%clk 0:00:46]} 31. a3 {[%clk 0:00:20]}  Nd3 {[%clk 0:00:39]} 32. Qxd3 {[%clk 0:00:20]}  Qxg4+ {[%clk 0:00:39]} 33. Bg3 {[%clk 0:00:21]}  h5 {[%clk 0:00:38]} 34. Qd8+ {[%clk 0:00:19]}  Kh7 {[%clk 0:00:38]} 35. Qd7+ {[%clk 0:00:20]}  Kh8 {[%clk 0:00:38]} 36. Qe8+ {[%clk 0:00:20]}  Kh7 {[%clk 0:00:38]} 37. Qf7+ {[%clk 0:00:20]}  Kh8 {[%clk 0:00:38]} 38. Qf6+ {[%clk 0:00:18]}  Kh7 {[%clk 0:00:39]} 39. Qh6+ {[%clk 0:00:18]}  Kg8 {[%clk 0:00:39]} 40. Qe6+ {[%clk 0:00:14]}  Kh7 {[%clk 0:00:38]} 41. Kg2 {[%clk 0:00:13]}  h4 {[%clk 0:00:37]} 42. Qf7+ {[%clk 0:00:12]}  Kh8 {[%clk 0:00:36]} 43. Nxh4 {[%clk 0:00:11]}  Qe4+ {[%clk 0:00:34]} 44. Kh2 {[%clk 0:00:11]}  Qc2 {[%clk 0:00:29]} 45. Ng6+ {[%clk 0:00:10]} 1-0


[Site "https://www.chess.com"]

[Event "Titled Tuesday Blitz December 20 Early 2022"]
[White "Al-Kailani, Zaid"]
[Black "ProfessorChess101"]
[WhiteFideId "8100187"]
[WhiteElo "2053"]
[BlackElo "2662"]
[Result "1-0"]
[Round "08"]
[TimeControl "180+2"]
[Date "2022.12.20"]
[WhiteClock "0:00:19"]
[BlackClock "0:00:07"]

1. e4 {[%clk 0:03:00]}  e5 {[%clk 0:02:58]} 2. Nf3 {[%clk 0:03:00]}  Nc6 {[%clk 0:02:58]} 3. Bc4 {[%clk 0:02:58]}  Nf6 {[%clk 0:02:58]} 4. d3 {[%clk 0:02:58]}  Be7 {[%clk 0:02:58]} 5. O-O {[%clk 0:02:57]}  O-O {[%clk 0:02:58]} 6. Re1 {[%clk 0:02:57]}  d6 {[%clk 0:02:58]} 7. a4 {[%clk 0:02:57]}  Kh8 {[%clk 0:02:56]} 8. Nc3 {[%clk 0:02:48]}  Bg4 {[%clk 0:02:49]} 9. h3 {[%clk 0:02:42]}  Bh5 {[%clk 0:02:48]} 10. Be3 {[%clk 0:02:38]}  Nd4 {[%clk 0:02:37]} 11. Bxd4 {[%clk 0:02:29]}  exd4 {[%clk 0:02:38]} 12. Nd5 {[%clk 0:02:29]}  Nxd5 {[%clk 0:02:33]} 13. Bxd5 {[%clk 0:02:30]}  c6 {[%clk 0:02:33]} 14. Bb3 {[%clk 0:02:27]}  f5 {[%clk 0:02:31]} 15. exf5 {[%clk 0:02:24]}  d5 {[%clk 0:02:19]} 16. g4 {[%clk 0:02:23]}  Bf7 {[%clk 0:02:13]} 17. Nxd4 {[%clk 0:02:22]}  Bf6 {[%clk 0:02:11]} 18. c3 {[%clk 0:02:16]}  Bxd4 {[%clk 0:02:06]} 19. cxd4 {[%clk 0:02:17]}  Qb6 {[%clk 0:02:05]} 20. Qc2 {[%clk 0:02:15]}  Qxd4 {[%clk 0:02:04]} 21. Qc3 {[%clk 0:02:12]}  Qf4 {[%clk 0:02:01]} 22. Re7 {[%clk 0:02:04]}  h5 {[%clk 0:01:48]} 23. Qc1 {[%clk 0:01:57]}  Qf3 {[%clk 0:01:35]} 24. Re3 {[%clk 0:01:19]}  Qf4 {[%clk 0:01:36]} 25. Rg3 {[%clk 0:01:16]}  Qb4 {[%clk 0:01:23]} 26. f6 {[%clk 0:01:00]}  h4 {[%clk 0:00:45]} 27. fxg7+ {[%clk 0:00:59]}  Kxg7 {[%clk 0:00:45]} 28. Qg5+ {[%clk 0:00:55]}  Bg6 {[%clk 0:00:45]} 29. Re3 {[%clk 0:00:51]}  Qxb3 {[%clk 0:00:33]} 30. Rae1 {[%clk 0:00:26]}  Qxb2 {[%clk 0:00:20]} 31. Re7+ {[%clk 0:00:24]}  Rf7 {[%clk 0:00:17]} 32. Rxf7+ {[%clk 0:00:21]}  Kxf7 {[%clk 0:00:18]} 33. Re7+ {[%clk 0:00:21]}  Kf8 {[%clk 0:00:17]} 34. Rc7 {[%clk 0:00:19]}  Bf7 {[%clk 0:00:09]} 35. Qe7+ {[%clk 0:00:18]}  Kg7 {[%clk 0:00:06]} 36. Qxf7+ {[%clk 0:00:19]}  Kh6 {[%clk 0:00:07]} 37. Qh5# {[%clk 0:00:19]} 1-0


[Site "https://www.chess.com"]